[Event "Velammal AICF Women GM 2024"]
[Site "Chennai"]
[Date "2024.03.22"]
[Round "7.2"]
[White "Maisuradze, Nino"]
[Black "Chitlange Sakshi"]
[Result "1-0"]
[ECO "D36"]
[WhiteElo "2254"]
[BlackElo "2175"]
[Annotator "TA"]
[PlyCount "111"]
[EventDate "2024.03.18"]
[EventType "tourn"]
[EventCountry "IND"]
[SourceTitle "playchess.com"]
[Source "ChessBase"]
[SourceQuality "1"]
[TimeControl "5400+30"]

{[%evp 25,111,-19,-5,-16,0,0,0,-37,-10,-9,0,-6,21,10,18,27,33,34,42,33,25,24,27,24,20,11,14,17,36,25,65,57,52,56,60,61,67,60,54,63,66,50,50,37,37,37,28,2,5,7,2,8,74,58,58,56,58,58,91,0,58,58,145,106,94,116,215,215,270,270,270,197,1343,1061,984,562,29969,29968,29977,29978,29983,29984,29984,29985,29988,29987,29989,29990]} 1. d4 {[%emt 0:02:43]} Nf6 {[%emt 0:00:08]} 2. c4 {[%emt 0:00:07]} e6 {[%emt 0:00:05]} 3. Nf3 {[%emt 0:00:06]} d5 {[%emt 0:00:18]} 4. Qc2 {[%emt 0:00:39]} Be7 {[%emt 0:03:29]} 5. cxd5 {[%emt 0:03:58]} exd5 {[%emt 0:00:21]} 6. Bg5 {[%emt 0:00:09]} c6 {[%emt 0:02:04]} 7. Nc3 {[%emt 0:00:06]} g6 {[%emt 0:02:08]} 8. e3 {[%emt 0:00:06]} Bf5 {[%emt 0:00:09]} 9. Bd3 {[%emt 0:00:05]} Bxd3 {[%emt 0:00:05]} 10. Qxd3 {[%emt 0:00:02]} Nbd7 {[%emt 0:00:06]} 11. O-O {[%emt 0:03:35]} O-O {[%emt 0:00:25]} 12. Rab1 {[%emt 0:02:02]} a5 {[%emt 0:02:56]} 13. a3 {[%emt 0:05:10]} Re8 {[%emt 0:06:14]} 14. Nd2 {[%emt 0:03:43]} Nh5 {[%emt 0:17:07]} 15. Bxe7 {[%emt 0:00:10]} Qxe7 {[%emt 0:00:02]} 16. b4 {[%emt 0:03:38] The position is equal.} axb4 {[%emt 0:04:06]} 17. axb4 {[%emt 0:00:01]} Nhf6 {[%emt 0:01:36][%cal Bh5f6,Bf6e8,Be8c7][%mdl 32]} 18. b5 {[%emt 0:00:25]} Qd6 {[%emt 0:02:59]} 19. h3 {[%emt 0:02:15]} Ra3 {[%emt 0:06:38]} 20. Rfc1 {[%emt 0:03:53]} Rea8 {[%emt 0:02:03]} 21. Nb3 {[%emt 0:04:15]} Ne8 {[%emt 0:06:17]} 22. Qc2 {[%emt 0:06:43]} Nc7 {[%emt 0:02:13]} 23. bxc6 {[%emt 0:00:46]} bxc6 {[%emt 0:00:06]} 24. Ne2 {[%emt 0:02:07]} R3a6 {[%emt 0:02:03]} 25. Nc5 {[%emt 0:06:55]} Nxc5 {[%emt 0:03:51]} 26. Qxc5 {[%emt 0:00:39]} Qxc5 {[%emt 0:00:31]} 27. Rxc5 {[%emt 0:00:07]} Ra1 {[%emt 0:03:22]} 28. Rxa1 {[%emt 0:00:23]} Rxa1+ $14 {[%emt 0:00:01][%mdl 4096] Endgame. KRN-KRN} 29. Nc1 {[%emt 0:00:21]} Ra6 {[%emt 0:01:57]} 30. Nd3 {[%emt 0:00:10]} Ne6 {[%emt 0:01:14]} 31. Rc1 {[%emt 0:01:01]} Nd8 $1 {[%emt 0:01:35]} 32. g4 {[%emt 0:04:39]} f6 {[%emt 0:05:45]} 33. h4 {[%emt 0:01:31]} Kf7 {[%emt 0:00:46]} 34. g5 {[%emt 0:00:57]} fxg5 {[%emt 0:01:27]} 35. hxg5 {[%emt 0:00:13]} Ke7 {[%emt 0:01:18]} 36. Ne5 {[%emt 0:00:33]} Kd6 {[%emt 0:02:07]} 37. Kg2 {[%emt 0:04:01]} Ne6 {[%emt 0:01:19]} 38. f4 {[%emt 0:00:57]} Nf8 {[%emt 0:10:20]} (38... Ra2+ $11 39. Kg3 c5) 39. Kf3 {[%emt 0:00:46]} Ne6 {[%emt 0:00:51]} 40. Rc2 {[%emt 0:01:30]} Nf8 {[%emt 0:01:15]} 41. Kg4 {[%emt 0:02:15]} Ne6 $1 {[%emt 0:00:19]} 42. Kf3 {[%emt 0:06:43]} Nf8 $1 {[%emt 0:00:49]} 43. Rb2 {[%emt 0:04:04]} Kc7 {[%emt 0:01:11] Prevents Rb7+.} (43... Ra7 $14) 44. Kg4 {[%emt 0:07:24] White has more active pieces.} Ra3 {[%emt 0:05:10]} 45. Rc2 {[%emt 0:00:31]} Ra6 {[%emt 0:00:05]} (45... Rxe3 $16 {keeps fighting.} 46. Rxc6+ (46. Nxc6 Ne6 $11) 46... Kd8) 46. f5 $18 {[%emt 0:03:52]} gxf5+ {[%emt 0:00:13]} 47. Kxf5 {[%emt 0:00:01]} Kd6 {[%emt 0:00:19]} 48. Kf6 {[%emt 0:01:35]} Nd7+ $2 {[%emt 0:02:50] [#]} (48... Rb6 49. Rc3 Ra6) 49. Nxd7 {[%emt 0:00:05]} Kxd7 {[%emt 0:00:04] KR-KR} 50. Rh2 {[%emt 0:00:11]} Kd6 {[%emt 0:00:51]} 51. Rxh7 {[%emt 0:00:14] White mates.} c5 {[%emt 0:00:12]} 52. g6 {[%emt 0:00:55][%cal Bg5g6,Bg6g7][%mdl 32]} cxd4 {[%emt 0:00:17]} 53. g7 {[%emt 0:00:36]} Ra1 {[%emt 0:00:25]} 54. Rh5 {[%emt 0:01:14]} ({Worse is} 54. g8=R Rf1+ 55. Kg7 Rg1+ 56. Kf7 (56. Kh8 Rxg8+ 57. Kxg8 dxe3 $11) 56... Rxg8 57. Rh6+ Kc5 58. exd4+ (58. Kxg8 dxe3 59. Re6 d4 $11) 58... Kxd4 59. Kxg8 Ke3 $11) 54... Ra8 {[%emt 0:01:30]} 55. exd4 {[%emt 0:01:15]} Kc6 {[%emt 0:00:12]} 56. Rh8 {[%emt 0:00:13] Weighted Error Value: White=0.18 (very precise) /Black=0.27 (precise) .  Mistake:       	---       	Black=4      Inaccurate:     	White=3     	Black=3      OK:         	White=9     	Black=9      Best:        	White=1     	Black=1      Strong:       	---       	Black=3} 1-0

[Event "Velammal AICF Women GM 2024"]
[Site "Chennai"]
[Date "2024.03.22"]
[Round "7.3"]
[White "Gomes, Mary Ann"]
[Black "Mahalakshmi, M."]
[Result "1-0"]
[ECO "D02"]
[WhiteElo "2322"]
[BlackElo "2242"]
[Annotator "TA"]
[PlyCount "101"]
[EventDate "2024.03.18"]
[EventType "tourn"]
[EventCountry "IND"]
[SourceTitle "playchess.com"]
[Source "ChessBase"]
[SourceQuality "1"]
[TimeControl "5400+30"]

{[%evp 14,101,17,0,12,0,0,0,0,0,24,8,27,9,44,12,17,10,24,16,39,12,108,0,16,24,35,32,21,21,16,25,22,20,28,26,36,32,39,35,35,33,33,12,8,20,23,0,54,0,0,0,65,80,79,85,78,72,82,44,188,196,494,250,420,420,412,378,314,216,260,248,337,333,472,381,434,431,1788,700,700,700,699,117,29982,29983,29990,29991,29996,29997]} 1. Nf3 {[%emt 0:01:00]} Nf6 {[%emt 0:00:02]} 2. b3 {[%emt 0:00:11]} d5 {[%emt 0:03:45]} 3. g3 {[%emt 0:01:45]} e6 {[%emt 0:01:17]} 4. Bg2 {[%emt 0:00:12]} Be7 {[%emt 0:00:19]} 5. Bb2 {[%emt 0:00:08]} c5 {[%emt 0:00:32]} 6. O-O {[%emt 0:00:07]} O-O {[%emt 0:00:05]} 7. e3 {[%emt 0:00:07]} Nc6 {[%emt 0:01:32]} 8. d4 {[%emt 0:01:15]} b6 {[%emt 0:05:00]} 9. Nbd2 {[%emt 0:00:07]} Ba6 {[%emt 0:00:16]} 10. Re1 {[%emt 0:00:08]} Rc8 {[%emt 0:00:38] The position is equal.} 11. Ne5 {[%emt 0:01:32]} Qc7 {[%emt 0:06:06]} 12. c4 {[%emt 0:03:46]} Bb7 {[%emt 0:02:50]} 13. cxd5 {[%emt 0:05:43]} exd5 {[%emt 0:12:18]} 14. f4 {[%emt 0:00:16]} Rfe8 {[%emt 0:04:14]} 15. Rc1 {[%emt 0:01:44]} Qb8 {[%emt 0:03:38]} 16. a3 {[%emt 0:03:55]} Rcd8 {[%emt 0:05:29]} 17. Qc2 {[%emt 0:07:04][%cal Rd4c5]} Qa8 {[%emt 0:03:41] [#]} (17... a5 $11) 18. b4 {[%emt 0:03:38]} Nxe5 {[%emt 0:05:18]} 19. fxe5 {[%emt 0:00:26]} Nd7 {[%emt 0:03:28]} 20. bxc5 {[%emt 0:00:09]} bxc5 {[%emt 0:01:13]} 21. Rf1 {[%emt 0:04:38]} Bg5 {[%emt 0:01:16]} 22. Rce1 {[%emt 0:00:13]} cxd4 {[%emt 0:02:48]} 23. exd4 {[%emt 0:03:27]} Qc8 {[%emt 0:02:37]} 24. Qd1 {[%emt 0:08:08]} Nf8 {[%emt 0:02:54]} 25. h4 {[%emt 0:02:27]} Bxd2 {[%emt 0:03:15]} 26. Qxd2 {[%emt 0:00:06]} Ne6 {[%emt 0:00:13]} 27. Rc1 {[%emt 0:00:56]} Qd7 {[%emt 0:01:39]} 28. Qa5 {[%emt 0:04:05][%cal Oc1c2] Black is weak on the dark squares} Bc6 {[%emt 0:03:02]} 29. Rf2 {[%emt 0:03:40]} Bb5 {[%emt 0:01:15] Dodges Rcf1} 30. a4 {[%emt 0:05:33]} Bc4 {[%emt 0:02:01]} (30... Bd3 $11) 31. Bf1 {[%emt 0:00:45]} (31. Rxc4 $14 dxc4 32. d5) 31... Rc8 {[%emt 0:04:07]} 32. Bxc4 {[%emt 0:02:47]} Rxc4 {[%emt 0:00:23]} ({Better is} 32... dxc4 $11 33. d5 Nc5 34. Rxc4 (34. e6 fxe6 35. Rxc4 Nb7 $15) 34... Nd3 (34... Qxd5 $2 35. Qc3 $18) 35. Rxc8 Qxc8) 33. Rxc4 $14 {[%emt 0:01:50]} dxc4 {[%emt 0:00:02]} 34. d5 {[%emt 0:00:37]} Nf8 {[%emt 0:03:19]} 35. Kh2 $36 {[%emt 0:01:18][%mdl 2048] White is really pushing.} Rb8 {[%emt 0:05:29]} 36. Bd4 {[%emt 0:07:28]} Rb1 {[%emt 0:04:38] [#] White now steadily converts the win.} (36... a6 $14) 37. Qc5 $1 $18 {[%emt 0:01:44]} (37. Qxa7 $2 Qxd5 38. Rg2 h6 $19) (37. Bxa7 $6 h5 $11 (37... Rd1 $2 38. e6 $18)) 37... Ng6 $2 {[%emt 0:04:07]} (37... Rb8 38. Qxc4 (38. Qxa7 Qxa7 39. Bxa7 Rd8 $16) 38... h5) 38. Qxc4 {[%emt 0:01:57]} (38. e6 $142 fxe6 39. h5 (39. Qxa7 Qxa7 40. Bxa7 exd5 $17) (39. Qxc4 exd5 40. Qc5 Rb7 $11)) 38... h6 $2 {[%emt 0:02:52]} (38... Qb7 39. Qd3 Rb3) 39. e6 {[%emt 0:05:45]} fxe6 {[%emt 0:00:11]} 40. dxe6 {[%emt 0:05:29]} Qb7 {[%emt 0:00:17][%csl Gb7][%cal Rb1h1]} 41. Rg2 {[%emt 0:00:09] Threatening mate with e7+. Active counter play!} ({Not} 41. e7+ Kh7 42. Rg2 (42. e8=Q $2 Qh1#) (42. Rf1 Rxf1 43. Qxf1 Qxe7 $11) 42... Nxe7 $14) 41... Ne7 {[%emt 0:01:27]} 42. Bc5 {[%emt 0:03:59] Hoping for Bxe7.} Qc7 {[%emt 0:00:40]} 43. Qe4 {[%emt 0:04:18]} Qb7 {[%emt 0:01:07]} (43... Rb3 $142) 44. Qf4 {[%emt 0:01:45] Qf7+ is the strong threat.} Ng6 {[%emt 0:00:37]} 45. Qf5 {[%emt 0:00:42]} Rc1 {[%emt 0:00:30]} (45... Rb2 $142 46. Qf7+ Kh7 47. Qxb7 Rxb7) 46. Ba3 {[%emt 0:02:24]} (46. h5 $142 Qc7 47. Ba3 (47. Qf7+ Qxf7 48. exf7+ Kxf7 $18)) 46... Ra1 {[%emt 0:00:29]} 47. Bb2 {[%emt 0:02:28]} Ra2 {[%emt 0:00:01]} 48. Qb1 $2 {[%emt 0:01:42]} (48. e7 $18 {and White stays clearly on top.} Qxg2+ 49. Kxg2 Rxb2+ 50. Kh3 Nxe7 51. Qe4) 48... Nxh4 $2 {[%emt 0:00:58][%mdl 8192]} 49. gxh4 {[%emt 0:00:22] White mates.} Qb8+ {[%emt 0:00:30]} 50. Kh1 {[%emt 0:00:31]} Rxa4 {[%emt 0:00:32]} 51. Rxg7+ {[%emt 0:00:10] Weighted Error Value: White=0.53/Black=0.52.  Mistake:       	White=4     	Black=8      Inaccurate:     	White=4     	Black=2      OK:         	White=15    	Black=10     Best:        	White=1     	Black=1      Strong:       	White=1     	---} 1-0

[Event "Velammal AICF Women GM 2024"]
[Site "Chennai"]
[Date "2024.03.22"]
[Round "7.4"]
[White "Franco Valencia, Angela"]
[Black "Velpula Sarayu"]
[Result "0-1"]
[ECO "B91"]
[WhiteElo "2095"]
[BlackElo "2389"]
[Annotator "TA"]
[PlyCount "66"]
[EventDate "2024.03.18"]
[EventType "tourn"]
[EventCountry "IND"]
[SourceTitle "playchess.com"]
[Source "ChessBase"]
[SourceQuality "1"]
[TimeControl "5400+30"]

{[%evp 15,66,11,24,0,0,0,0,-17,0,-30,-33,-37,-27,-19,-8,-56,-59,-146,-126,-190,-197,-255,-255,-248,-109,-109,-116,-113,-120,-143,-131,-410,-353,-379,-375,-379,-396,-375,-354,-364,-346,-326,-226,-366,-412,-687,-666,-694,-682,-809,-755,-1862,-789]} 1. e4 {[%emt 0:02:36]} c5 {[%emt 0:00:26]} 2. Nf3 {[%emt 0:00:08]} d6 {[%emt 0:00:31]} 3. d4 {[%emt 0:00:07]} cxd4 {[%emt 0:00:30]} 4. Nxd4 {[%emt 0:00:05]} Nf6 {[%emt 0:00:28]} 5. Nc3 {[%emt 0:00:13]} a6 {[%emt 0:00:30]} 6. g3 {[%emt 0:00:36]} e5 {[%emt 0:00:34]} 7. Nde2 {[%emt 0:00:23]} Be7 {[%emt 0:00:28]} 8. Bg2 {[%emt 0:00:06]} b5 {[%emt 0:00:29][%cal Bb7b5,Bb5b4][%mdl 32]} 9. a4 {[%emt 0:01:16]} b4 {[%emt 0:00:51]} 10. Nd5 {[%emt 0:00:05]} a5 {[%emt 0:00:34]} 11. O-O {[%emt 0:00:18] The position is equal.} Nbd7 {[%emt 0:02:28]} 12. c4 {[%emt 0:02:47]} Nxd5 {[%emt 0:04:19]} 13. Qxd5 {[%emt 0:02:05]} Ba6 {[%emt 0:03:59]} 14. Be3 {[%emt 0:03:05]} O-O {[%emt 0:02:28]} 15. Qc6 {[%emt 0:07:18]} (15. b3 $11) 15... Nf6 $15 {[%emt 0:04:30]} 16. b3 {[%emt 0:02:00]} (16. Bg5 $15) 16... Qb8 $1 $17 {[%emt 0:02:53] And now ...Bb7 would win.} 17. Qb6 {[%emt 0:00:52]} (17. f3 $17) 17... Bb7 $19 {[%emt 0:03:49]} 18. Bg5 {[%emt 0:27:32]} (18. Bc1 $142) 18... Nd7 $1 {[%emt 0:27:06]} (18... Bxe4 $2 {is the wrong capture.} 19. Qxb8 Rfxb8 20. Bxe4 Nxe4 21. Bxe7 $18) 19. Qb5 {[%emt 0:00:20] [#]} Qc8 {[%emt 0:03:43]} 20. Bxe7 $17 {[%emt 0:02:51]} Bc6 {[%emt 0:00:55]} 21. Nd4 {[%emt 0:04:44]} Bxb5 {[%emt 0:00:22]} 22. Nxb5 {[%emt 0:00:05]} Nc5 {[%emt 0:03:22][%cal Oc5b3] aiming for ...Nxb3!} 23. Nxd6 $2 {[%emt 0:03:49][%mdl 8192] Now White is beyond hope.} (23. Rab1 $17) 23... Qe6 {[%emt 0:01:11]} 24. Bxf8 {[%emt 0:00:04]} Rxf8 {[%emt 0:00:08]} 25. Rad1 {[%emt 0:01:28]} Nxb3 {[%emt 0:02:00]} 26. Rd5 {[%emt 0:00:26]} Rd8 {[%emt 0:02:23]} 27. Nb7 {[%emt 0:00:25]} Rb8 {[%emt 0:05:00]} 28. Rb1 {[%emt 0:00:59]} g6 {[%emt 0:03:21]} 29. Nd8 {[%emt 0:02:10]} (29. Rxb3 {keeps fighting.} Rxb7 30. Bf1) 29... Qe8 $19 {[%emt 0:00:26]} 30. Nxf7 {[%emt 0:00:37]} (30. Rxb3 $142 Rxd8 31. Rxa5 Rd1+ 32. Bf1) 30... Kxf7 {[%emt 0:00:07] Black is clearly winning.} (30... Qxa4 $2 31. Nxe5 Qa2 32. Re1 $19) 31. Rxb3 {[%emt 0:00:06]} Qxa4 {[%emt 0:00:07]} 32. Rf3+ {[%emt 0:04:46]} Kg7 {[%emt 0:00:38] Threatens to win with ...b3.} 33. Rc5 {[%emt 0:00:50]} Qd1+ {[%emt 0:00:16] Weighted Error Value: White=0.89/Black=0.19 (very precise) .  Loses game:     	White=1     	---        Mistake:       	White=6     	Black=1      Inaccurate:     	White=1     	Black=1      OK:         	White=10    	Black=9      Best:        	---       	Black=2      Strong:       	---       	Black=2} 0-1

[Event "Velammal AICF Women GM 2024"]
[Site "Chennai"]
[Date "2024.03.22"]
[Round "7.5"]
[White "Monnisha G K"]
[Black "Rindhiya V"]
[Result "1-0"]
[ECO "C90"]
[WhiteElo "2202"]
[BlackElo "1953"]
[Annotator "RC"]
[PlyCount "113"]
[EventDate "2024.03.18"]
[EventType "tourn"]
[EventCountry "IND"]
[SourceTitle "playchess.com"]
[Source "ChessBase"]
[SourceQuality "1"]
[TimeControl "5400+30"]

1. e4 {[%emt 0:00:17]} e5 {[%emt 0:00:03]} 2. Nf3 {[%emt 0:00:07]} Nc6 {[%emt 0:00:03]} 3. Bb5 {[%emt 0:00:05]} a6 {[%emt 0:00:04]} 4. Ba4 {[%emt 0:00:05]} Nf6 {[%emt 0:00:04]} 5. d3 {[%emt 0:00:04]} b5 {[%emt 0:00:08]} 6. Bb3 {[%emt 0:00:07]} Be7 {[%emt 0:00:30]} 7. O-O {[%emt 0:00:08]} d6 {[%emt 0:00:56]} 8. c3 {[%emt 0:00:05]} O-O {[%emt 0:01:05]} 9. Re1 {[%emt 0:00:09]} Na5 {[%emt 0:00:03]} 10. Bc2 {[%emt 0:00:05]} c5 {[%emt 0:00:07]} 11. Nbd2 {[%emt 0:00:05]} Nc6 {[%emt 0:00:04]} 12. Nf1 {[%emt 0:00:12]} Re8 {[%emt 0:00:32]} 13. Ng3 {[%emt 0:00:14]} Bf8 {[%emt 0:01:14]} 14. h3 {[%emt 0:00:52]} g6 {[%emt 0:00:17]} 15. d4 {[%emt 0:00:56]} cxd4 {[%emt 0:00:39]} 16. cxd4 {[%emt 0:00:08]} exd4 {[%emt 0:00:03]} 17. Nxd4 {[%emt 0:00:27]} Bb7 {[%emt 0:00:29]} 18. a4 {[%emt 0:13:26]} b4 {[%emt 0:07:26]} 19. Bg5 {[%emt 0:06:09]} h6 {[%emt 0:04:05]} 20. Bf4 {[%emt 0:01:36]} Kh7 {[%emt 0:12:33]} 21. Bb3 {[%emt 0:08:14]} Qd7 {[%emt 0:00:40]} 22. Nxc6 {[%emt 0:02:46]} Bxc6 {[%emt 0:00:11]} 23. Qd4 {[%emt 0:00:25]} Ng8 {[%emt 0:01:38]} 24. Qxb4 {[%emt 0:02:20]} d5 {[%emt 0:00:30]} 25. Qd4 {[%emt 0:02:34]} dxe4 {[%emt 0:00:18]} 26. Qxd7 {[%emt 0:00:15]} Bxd7 {[%emt 0:00:02]} 27. Bxf7 {[%emt 0:00:20]} Re7 {[%emt 0:00:09]} 28. Bd5 {[%emt 0:00:43]} Rae8 {[%emt 0:00:11]} 29. Bd6 {[%emt 0:01:40]} Rg7 {[%emt 0:00:10]} 30. Bxf8 {[%emt 0:02:52]} Rxf8 {[%emt 0:00:05]} 31. Nxe4 {[%emt 0:00:22]} Bf5 {[%emt 0:00:05]} 32. Nc5 {[%emt 0:01:14]} a5 {[%emt 0:00:08]} 33. Ne6 {[%emt 0:03:07]} Bxe6 {[%emt 0:00:04]} 34. Rxe6 {[%emt 0:00:09]} Rc7 {[%emt 0:00:06]} 35. b3 {[%emt 0:01:49]} Rc2 {[%emt 0:00:11]} 36. Rxg6 {[%emt 0:02:14]} Ne7 {[%emt 0:00:51]} 37. Be4 {[%emt 0:00:08]} Nxg6 {[%emt 0:00:12]} 38. Bxc2 {[%emt 0:00:07]} Kg7 {[%emt 0:00:03]} 39. Bxg6 {[%emt 0:00:22]} Kxg6 {[%emt 0:00:02]} 40. Rc1 {[%emt 0:00:07]} Rb8 {[%emt 0:00:05]} 41. Rc5 {[%emt 0:00:09]} Rxb3 {[%emt 0:00:05]} 42. Rxa5 {[%emt 0:00:03]} Rb1+ {[%emt 0:00:05]} 43. Kh2 {[%emt 0:00:04]} Rb2 {[%emt 0:00:03]} 44. Kg3 {[%emt 0:00:10]} Ra2 {[%emt 0:00:03]} 45. Kf3 {[%emt 0:00:20]} Ra3+ {[%emt 0:00:05]} 46. Kg4 {[%emt 0:00:23]} Ra2 {[%emt 0:00:04]} 47. Ra6+ {[%emt 0:00:03]} Kg7 {[%emt 0:00:04]} 48. Kg3 {[%emt 0:00:06]} Ra3+ {[%emt 0:00:04]} 49. f3 {[%emt 0:00:02]} Ra2 {[%emt 0:00:05]} 50. a5 {[%emt 0:00:04]} Kh7 {[%emt 0:00:04]} 51. h4 {[%emt 0:00:04]} Kg7 {[%emt 0:00:04]} 52. Kh3 {[%emt 0:00:05]} Ra3 {[%emt 0:00:03]} 53. h5 {[%emt 0:00:13]} Kh7 {[%emt 0:00:04]} 54. Ra7+ {[%emt 0:00:05]} Kh8 {[%emt 0:00:04]} 55. a6 {[%emt 0:00:04]} Kg8 {[%emt 0:00:01]} 56. Kg4 {[%emt 0:00:05]} Ra5 {[%emt 0:00:16]} 57. f4 {[%emt 0:00:05]} 1-0

[Event "Velammal AICF Women GM 2024"]
[Site "Chennai"]
[Date "2024.03.22"]
[Round "7.6"]
[White "Enkhtuul, Altan-Ulzii"]
[Black "Uuriintuya, Uurtsaikh"]
[Result "1-0"]
[ECO "E69"]
[WhiteElo "2195"]
[BlackElo "2288"]
[Annotator "TA"]
[PlyCount "91"]
[EventDate "2024.03.18"]
[EventType "tourn"]
[EventCountry "IND"]
[SourceTitle "playchess.com"]
[Source "ChessBase"]
[SourceQuality "1"]
[TimeControl "5400+30"]

{[%evp 18,91,45,0,60,29,62,27,32,36,28,19,41,43,27,42,160,154,138,140,131,123,183,178,171,168,177,169,212,214,259,241,252,243,296,288,435,433,439,443,563,568,612,599,691,693,702,725,908,906,858,828,775,802,935,1013,866,865,837,855,1227,1235,1185,1185,2087,2099,2391,5143,2614,6049,5535,5535,2766,2627,29971,10922]} 1. d4 {[%emt 0:02:37]} Nf6 {[%emt 0:00:13]} 2. c4 {[%emt 0:00:06]} g6 {[%emt 0:00:06]} 3. Nc3 {[%emt 0:00:04]} Bg7 {[%emt 0:00:09]} 4. Nf3 {[%emt 0:00:04]} O-O {[%emt 0:00:09]} 5. g3 {[%emt 0:00:02]} d6 {[%emt 0:00:12]} 6. Bg2 {[%emt 0:00:05]} Nbd7 {[%emt 0:00:21]} 7. O-O {[%emt 0:00:10]} e5 {[%emt 0:00:05]} 8. e4 {[%emt 0:00:22]} c6 {[%emt 0:00:07]} 9. h3 {[%emt 0:10:01]} Qa5 {[%emt 0:00:46]} 10. Rb1 {[%emt 0:04:20]} exd4 {[%emt 0:03:24]} ({Black should try} 10... Qb4 $11) 11. Nxd4 $14 {[%emt 0:07:59][%cal Bf3d4,Bd4b3,Bb3a5][%mdl 32]} Ne5 {[%emt 0:03:39]} 12. b4 {[%emt 0:09:25]} Qa6 {[%emt 0:08:41] White has an edge.} 13. b5 {[%emt 0:03:34]} Qa5 {[%emt 0:01:56]} 14. Bd2 {[%emt 0:17:33]} c5 {[%emt 0:13:52]} 15. Nb3 {[%emt 0:00:24]} Qb4 {[%emt 0:03:03]} 16. Nd5 $36 {[%emt 0:03:34][%mdl 2048] White fights for an advantage.} Qa4 {[%emt 0:11:08] White now steadily converts the win.} (16... Qxc4 $14 17. Na5 Qd3) 17. Na5 $16 {[%emt 0:03:26]} Qxd1 {[%emt 0:05:21]} 18. Ne7+ {[%emt 0:07:53]} ({Inferior is} 18. Rbxd1 Nxd5 19. cxd5 b6 $15) 18... Kh8 {[%emt 0:00:10]} 19. Rfxd1 {[%emt 0:00:03] [#] Threatens to win with Nxc8.} b6 {[%emt 0:11:48]} (19... Be6 $16) 20. f4 $1 $18 {[%emt 0:00:51]} bxa5 {[%emt 0:02:20]} 21. fxe5 {[%emt 0:00:05]} dxe5 {[%emt 0:00:06] [#]} 22. Nxc8 {[%emt 0:00:17]} Raxc8 {[%emt 0:05:10]} 23. Bxa5 {[%emt 0:00:16]} h5 {[%emt 0:03:54]} 24. a4 {[%emt 0:00:42]} Ra8 {[%emt 0:02:56]} 25. Rd6 {[%emt 0:02:23]} Nh7 {[%emt 0:01:19]} 26. Rbd1 {[%emt 0:04:57]} Ng5 {[%emt 0:06:07]} (26... Rfe8 $142 27. h4 Reb8) 27. Ra6 {[%emt 0:00:50]} Ne6 {[%emt 0:07:01]} 28. Rd7 {[%emt 0:00:07]} Nd4 {[%emt 0:01:06]} 29. Raxa7 {[%emt 0:00:59]} Rxa7 {[%emt 0:00:06]} 30. Rxa7 {[%emt 0:00:05]} Bh6 {[%emt 0:03:59]} 31. Bc7 {[%emt 0:02:00]} Be3+ {[%emt 0:00:59]} 32. Kh2 {[%emt 0:00:21]} f6 {[%emt 0:00:27]} 33. Bd6 {[%emt 0:01:15]} Re8 {[%emt 0:01:16]} 34. b6 {[%emt 0:02:52][%cal Ob6b7] b7! is the strong threat.} Nc6 {[%emt 0:04:50]} 35. Rc7 {[%emt 0:00:10]} Na5 {[%emt 0:00:11]} 36. Bxc5 {[%emt 0:02:32]} Bd2 {[%emt 0:00:17]} 37. b7 {[%emt 0:00:59]} Nxb7 {[%emt 0:01:14]} 38. Rxb7 {[%emt 0:00:08]} h4 {[%emt 0:00:19]} 39. Bd6 {[%emt 0:00:29]} hxg3+ {[%emt 0:00:40]} 40. Kxg3 {[%emt 0:00:20]} Re6 {[%emt 0:00:21]} 41. c5 {[%emt 0:00:13]} f5 {[%emt 0:00:26]} 42. Re7 {[%emt 0:01:47]} Bf4+ {[%emt 0:00:19]} 43. Kf2 {[%emt 0:00:57]} Rf6 {[%emt 0:00:09]} 44. Bxe5 {[%emt 0:01:13]} Bxe5 {[%emt 0:00:08]} 45. Rxe5 {[%emt 0:00:03] Intending exf5 and mate.} fxe4+ {[%emt 0:00:15]} 46. Ke3 {[%emt 0:00:13] Weighted Error Value: White=0.05 (flawless) /Black=0.73.  Mistake:       	---       	Black=3      Inaccurate:     	White=2     	Black=1      OK:         	White=13    	Black=6      Best:        	White=2     	Black=1      Strong:       	White=1     	---} 1-0